lending/lending_fUSD_20250408
["ID","MTS","AMOUNT","RATE_DAILY","PERIOD"]
[357548975,1744135888370,-1012.34,0.00055342,120]
[357548976,1744135888380,-500.0,0.00055342,120]
[357548977,1744135888391,-1476.66,0.00055342,120]
[357548978,1744135888402,-500.0,0.00055342,120]
[357548979,1744135888412,-518.9,0.00055342,120]
[357548980,1744135888423,-500.0,0.00055342,120]
[357548981,1744135888434,-714.16,0.00055342,120]
[357548982,1744135888445,-572.51611606,0.00055342,120]
[357548983,1744135888455,-500.0,0.00055342,120]
[357548984,1744135888465,-500.0,0.00055342,120]
[357548985,1744135888475,-164.80017778,0.00055342,120]
[357548986,1744135888486,-521.99,0.00055342,120]
[357548987,1744135888496,-707.18,0.00055342,120]
[357548988,1744135888506,-802.54,0.00055342,120]
[357548989,1744135888524,-500.0,0.00055342,120]
[357548990,1744135888535,-599.6,0.00055342,120]
[357548991,1744135888545,-500.0,0.00055342,120]
[357548992,1744135888555,-704.21,0.00055342,120]
[357548993,1744135888565,-500.0,0.00055342,120]
[357548994,1744135888575,-500.0,0.00055342,120]
[357548995,1744135888586,-641.96,0.00055342,120]
[357548996,1744135888595,-500.0,0.00055342,120]
[357548997,1744135888604,-938.36,0.00055342,120]
[357548998,1744135888615,-836.32,0.00055342,120]
[357548999,1744135888626,-602.0577569,0.00055342,120]
[357549000,1744135888636,-500.0,0.00055342,120]
[357549001,1744135888646,-500.0,0.00055342,120]
[357549002,1744135888656,-496.32657516,0.00055342,120]
[357549003,1744135888667,-500.0,0.00055342,120]
[357549004,1744135888677,-1001.73,0.00055342,120]
[357549005,1744135888687,-500.0,0.00055342,120]
[357549006,1744135888696,-1758.82,0.00055342,120]
[357549007,1744135888707,-888.6,0.00055342,120]
[357549008,1744135888716,-500.0,0.00055342,120]
[357549009,1744135888728,-1712.57,0.00055342,120]
[357549010,1744135888738,-669.22,0.00055342,120]
[357549011,1744135888747,-597.59,0.00055342,120]
[357549012,1744135888758,-500.0,0.00055342,120]
[357549013,1744135888768,-500.0,0.00055342,120]
[357549014,1744135888777,-500.0,0.00055342,120]
[357549015,1744135888787,-808.98,0.00055342,120]
[357549016,1744135888797,-500.0,0.00055342,120]
[357549017,1744135888807,-878.06,0.00055342,120]
[357549018,1744135888817,-539.63,0.00055342,120]
[357549019,1744135888827,-500.0,0.00055342,120]
[357549020,1744135888836,-500.0,0.00055342,120]
[357549021,1744135888845,-500.0,0.00055342,120]
[357549022,1744135888855,-500.0,0.00055342,120]
[357549023,1744135888864,-500.0,0.00055342,120]
[357549024,1744135888874,-500.0,0.00055342,120]
[357549025,1744135888883,-500.0,0.00055342,120]
[357549026,1744135888893,-990.1,0.00055342,120]
[357549027,1744135888902,-550.93,0.00055342,120]
[357549028,1744135888912,-1032.36,0.00055342,120]
[357549029,1744135888922,-1056.72,0.00055342,120]
[357549030,1744135888931,-1303.1,0.00055342,120]
[357549031,1744135888941,-500.0,0.00055342,120]
[357549032,1744135888950,-545.23,0.00055342,120]
[357549033,1744135888960,-500.0,0.00055342,120]
[357549034,1744135888969,-500.0,0.00055342,120]
[357549035,1744135888978,-500.0,0.00055342,120]
[357549036,1744135888988,-951.16,0.00055342,120]
[357549037,1744135888998,-500.0,0.00055342,120]
[357549038,1744135889007,-947.72,0.00055342,120]
[357549039,1744135889017,-808.53,0.00055342,120]
[357549040,1744135889026,-845.46,0.00055342,120]
[357549041,1744135889037,-500.0,0.00055342,120]
[357549042,1744135889046,-500.0,0.00055342,120]
[357549043,1744135889056,-500.0,0.00055342,120]
[357549044,1744135889066,-500.0,0.00055342,120]
[357549045,1744135889075,-833.03,0.00055342,120]
[357549046,1744135889085,-2431.15,0.00055342,120]
[357549047,1744135889095,-227.4028095,0.00055342,120]
[357549048,1744135889105,-1568.64,0.00055342,120]
[357549049,1744135889114,-975.29,0.00055342,120]
[357549050,1744135889124,-806.29,0.00055342,120]
[357549051,1744135889134,-500.0,0.00055342,120]
[357549052,1744135889143,-500.0,0.00055342,120]
[357549053,1744135889154,-500.0,0.00055342,120]
[357549054,1744135889164,-929.27,0.00055342,120]
[357549055,1744135889174,-1263.92,0.00055342,120]
[357549056,1744135889184,-500.0,0.00055342,120]
[357549057,1744135889193,-6744.61,0.00055342,2]
[357549058,1744135889203,-1745.31,0.00055342,120]
[357549059,1744135889212,-500.0,0.00055342,120]
[357549060,1744135889222,-784.78,0.00055342,120]
[357549061,1744135889231,-844.34,0.00055342,120]
[357549062,1744135889241,-1297.19,0.00055342,120]
[357549063,1744135889251,-671.69,0.00055342,120]
[357549064,1744135889261,-500.0,0.00055342,120]
[357549065,1744135889271,-736.0,0.00055342,120]
[357549066,1744135889355,-500.0,0.00055342,120]
[357549067,1744135889365,-500.0,0.00055342,120]
[357549068,1744135889374,-500.0,0.00055342,120]
[357549069,1744135889384,-596.17,0.00055342,120]
[357549070,1744135889393,-1049.21,0.00055342,120]
[357549071,1744135889402,-878.89,0.00055342,120]
[357549072,1744135889412,-500.0,0.00055342,120]
[357549073,1744135889422,-520.04,0.00055342,120]
[357549074,1744135889432,-581.28,0.00055342,120]
[357549075,1744135889441,-1004.09,0.00055342,120]
[357549076,1744135889451,-500.0,0.00055342,120]
[357549077,1744135889461,-500.0,0.00055342,120]
[357549078,1744135889471,-500.0,0.00055342,120]
[357549079,1744135889480,-1139.43,0.00055342,120]
[357549080,1744135889490,-769.0,0.00055342,120]
[357549081,1744135889499,-500.0,0.00055342,120]
[357549082,1744135889509,-500.0,0.00055342,120]
[357549083,1744135889519,-691.29,0.00055342,120]
[357549084,1744135889529,-2188.68,0.00055342,120]
[357549085,1744135889541,-500.0,0.00055342,120]
[357549086,1744135889551,-500.0,0.00055342,120]
[357549087,1744135889561,-980.44,0.00055342,120]
[357549088,1744135889572,-547.15,0.00055342,120]
[357549089,1744135889582,-591.63,0.00055342,120]
[357549090,1744135889591,-500.0,0.00055342,120]
[357549091,1744135889600,-707.17,0.00055342,120]
[357549092,1744135889611,-1356.13,0.00055342,120]
[357549093,1744135889623,-621.25,0.00055342,120]
[357549094,1744135889633,-572.87602915,0.00055342,120]
[357549095,1744135889642,-1061.81,0.00055342,120]
[357549096,1744135889651,-671.05,0.00055342,120]
[357549097,1744135889662,-915.65,0.00055342,120]
[357549098,1744135889672,-991.48,0.00055342,120]
[357549099,1744135889682,-500.0,0.00055342,120]
[357549100,1744135889691,-500.0,0.00055342,120]
[357549101,1744135889703,-771.41,0.00055342,120]
[357549102,1744135889712,-735.03,0.00055342,120]
[357549103,1744135889722,-500.0,0.00055342,120]
[357549104,1744135889731,-1539.5,0.00055342,120]
[357549105,1744135889740,-500.0,0.00055342,120]
[357549106,1744135889750,-793.73,0.00055342,120]
[357549107,1744135889760,-2030.76,0.00055342,120]
[357549108,1744135889770,-645.49,0.00055342,120]
[357549109,1744135889779,-500.0,0.00055342,120]
[357549110,1744135889791,-500.0,0.00055342,120]
[357549111,1744135889800,-543.59,0.00055342,120]
[357549112,1744135889809,-1107.48,0.00055342,120]
[357549113,1744135889819,-500.0,0.00055342,120]
[357549114,1744135889828,-500.0,0.00055342,120]
[357549115,1744135889838,-1122.05,0.00055342,120]
[357549116,1744135889848,-500.0,0.00055342,120]
[357549117,1744135889858,-500.0,0.00055342,8]
[357549118,1744135889867,-918.42,0.00055342,120]
[357549119,1744135889877,-1784.68,0.00055342,120]
[357549120,1744135889886,-500.0,0.00055342,120]
[357549121,1744135889895,-665.51,0.00055342,120]
[357549122,1744135889904,-500.0,0.00055342,120]
[357549123,1744135889912,-578.6,0.00055342,120]
[357549124,1744135889921,-841.6,0.00055342,120]
[357549125,1744135889931,-500.0,0.00055342,120]
[357549126,1744135889940,-1052.26,0.00055342,120]
[357549127,1744135889949,-528.16,0.00055342,120]
[357549128,1744135889958,-768.18,0.00055342,120]
[357549129,1744135889968,-1672.07,0.00055342,118]
[357549130,1744135889977,-500.0,0.00055342,120]
[357549131,1744135889987,-1296.01,0.00055342,120]
[357549132,1744135889996,-1146.51,0.00055342,120]
[357549133,1744135890005,-500.0,0.00055342,120]
[357549134,1744135890015,-1000.0,0.00055342,120]
[357549135,1744135890024,-500.0,0.00055342,120]
[357549136,1744135890034,-500.0,0.00055342,120]
[357549137,1744135890043,-500.0,0.00055342,120]
[357549138,1744135890053,-803.86,0.00055342,120]
[357549139,1744135890062,-2828.98,0.00055342,120]
[357549140,1744135890072,-500.0,0.00055342,120]
[357549141,1744135890081,-825.98,0.00055342,120]
[357549142,1744135890091,-513.55,0.00055342,120]
[357549143,1744135890101,-500.0,0.00055342,120]
[357549144,1744135890110,-1752.77,0.00055342,120]
[357549145,1744135890120,-500.0,0.00055342,120]
[357549146,1744135890130,-1469.03,0.00055342,120]
[357549147,1744135890139,-674.74,0.00055342,120]
[357549148,1744135890149,-734.29,0.00055342,120]
[357549149,1744135890160,-895.79,0.00055342,120]
[357549150,1744135890170,-931.13,0.00055342,120]
[357549151,1744135890179,-500.0,0.00055342,120]
[357549152,1744135890190,-548.95,0.00055342,120]
[357549153,1744135890199,-500.0,0.00055342,120]
[357549154,1744135890209,-1851.47,0.00055342,120]
[357549155,1744135890219,-500.0,0.00055342,120]
[357549156,1744135890229,-500.0,0.00055342,120]
[357549157,1744135890239,-500.0,0.00055342,120]
[357549158,1744135890252,-943.92,0.00055342,120]
[357549159,1744135890263,-500.0,0.00055342,120]
[357549160,1744135890273,-2817.37,0.00055342,120]
[357549161,1744135890283,-643.01,0.00055342,120]
[357549162,1744135890292,-500.0,0.00055342,60]
[357549163,1744135890302,-500.0,0.00055342,120]
[357549164,1744135890312,-2095.08,0.00055342,120]
[357549165,1744135890321,-535.91,0.00055342,120]
[357549166,1744135890331,-500.0,0.00055342,120]
[357549167,1744135890342,-500.0,0.00055342,120]
[357549168,1744135890351,-614.96544175,0.00055342,120]
[357549169,1744135890362,-1220.84,0.00055342,2]
[357549170,1744135890372,-2753.64,0.00055342,100]
[357549171,1744135890381,-500.0,0.00055342,120]
[357549172,1744135890391,-500.0,0.00055342,120]
[357549173,1744135890401,-2064.77,0.00055342,120]
[357549174,1744135890410,-500.0,0.00055342,120]
[357549175,1744135890420,-500.0,0.00055342,120]
[357549176,1744135890429,-500.0,0.00055342,120]
[357549177,1744135890439,-1736.05,0.00055342,120]
[357549178,1744135890449,-777.99,0.00055342,120]
[357549179,1744135890459,-500.0,0.00055342,120]
[357549180,1744135890468,-2563.65,0.00055342,120]
[357549181,1744135890478,-500.0,0.00055342,120]
[357549182,1744135890488,-1027.58,0.00055342,120]
[357549183,1744135890497,-751.14,0.00055342,120]
[357549184,1744135890507,-1287.88,0.00055342,120]
[357549185,1744135890518,-646.32,0.00055342,120]
[357549186,1744135890527,-500.0,0.00055342,120]
[357549187,1744135890539,-500.0,0.00055342,120]
[357549188,1744135890549,-509.41,0.00055342,120]
[357549189,1744135890559,-500.0,0.00055342,120]
[357549190,1744135890568,-500.0,0.00055342,120]
[357549191,1744135890579,-575.39,0.00055342,120]
[357549192,1744135890590,-2129.03,0.00055342,120]
[357549193,1744135890600,-1105.86,0.00055342,120]
[357549194,1744135890610,-500.0,0.00055342,120]
[357549195,1744135890623,-1398.27,0.00055342,120]
[357549196,1744135890634,-500.0,0.00055342,120]
[357549197,1744135890644,-500.0,0.00055342,120]
[357549198,1744135890655,-500.0,0.00055342,120]
[357549199,1744135890664,-500.0,0.00055342,120]
[357549200,1744135890684,-813.0,0.00055342,120]
[357549201,1744135890696,-500.0,0.00055342,120]
[357549202,1744135890707,-500.0,0.00055342,120]
[357549203,1744135890718,-1231.16,0.00055342,120]
[357549204,1744135890728,-1852.62,0.00055342,120]
[357549205,1744135890738,-2129.78,0.00055342,120]
[357549206,1744135890748,-500.0,0.00055342,120]
[357549207,1744135890759,-500.0,0.00055342,120]
[357549208,1744135890769,-817.54,0.00055342,120]
[357549209,1744135890779,-735.03,0.00055342,120]
[357549210,1744135890790,-500.0,0.00055342,120]
[357549211,1744135890800,-500.0,0.00055342,120]
[357549212,1744135890811,-500.0,0.00055342,120]
[357549213,1744135890821,-538.82,0.00055342,120]
[357549214,1744135890832,-500.0,0.00055342,120]
[357549215,1744135890843,-794.86,0.00055342,120]
[357549216,1744135890853,-500.0,0.00055342,120]
[357549217,1744135890863,-589.43,0.00055342,120]
[357549218,1744135890873,-500.0,0.00055342,120]
[357549219,1744135890884,-500.0,0.00055342,120]
[357549220,1744135890894,-1762.5,0.00055342,120]
[357549221,1744135890904,-703.81,0.00055342,120]
[357549222,1744135890914,-500.0,0.00055342,120]
[357549223,1744135890924,-1383.32,0.00055342,120]
[357549224,1744135890934,-500.0,0.00055342,2]
[357549225,1744135890944,-229.15111058,0.00055342,120]
[357549226,1744135890954,-265.17158938,0.00055475,120]
[357549227,1744135890964,-265.17158938,0.00055475,120]
[357549228,1744135890975,-265.17158938,0.00055475,120]
[357549229,1744135890985,-689.11914121,0.00055475,120]
[357549230,1744135890995,-689.11914121,0.00055475,120]
[357549231,1744135891006,-689.11914121,0.00055475,120]
[357549232,1744135891016,-1663.12858184,0.00055475,120]
[357549233,1744135891026,-1663.12858184,0.00055475,120]
[357549234,1744135891037,-1663.12858184,0.00055475,120]
[357549235,1744135891047,-741.0,0.000555,120]
[357549236,1744135891058,-1049.986755,0.000555,120]
[357549237,1744135891068,-154.32081203,0.00055516,33]
[357549238,1744135891078,-936.52,0.00055548,120]
[357549239,1744135891088,-1460.93,0.00055575,120]
[357549240,1744135891098,-884.11,0.00055575,120]
[357549241,1744135891108,-823.089422,0.00055606,15]
[357549242,1744135891118,-522.2,0.00055614,120]
[357549243,1744135891128,-500.0,0.00055615,120]
[357549244,1744135891138,-500.0,0.00055615,120]
[357549245,1744135891148,-500.0,0.00055615,120]
[357549246,1744135891158,-522.2,0.00055615,120]
[357549247,1744135891168,-522.2,0.00055615,120]
[357549248,1744135891178,-698.53,0.00055615,120]
[357549249,1744135891188,-698.53,0.00055615,120]
[357549250,1744135891198,-698.53,0.00055615,120]
[357549251,1744135891208,-500.0,0.00055615,2]
[357549252,1744135891218,-533.06169399,0.00055615,2]
[357549253,1744135891228,-1603.99,0.00055615,120]
[357549254,1744135891238,-1603.99,0.00055615,120]
[357549255,1744135891248,-999.0,0.00055615,120]
[357549256,1744135891258,-500.0,0.00055615,120]
[357549257,1744135891268,-605.98362088,0.00055616,120]
[357549258,1744135891278,-500.0,0.00055616,16]
[357549259,1744135891288,-307.7067129,0.00055616,120]
[357549260,1744135891298,-209.0,0.0005566,30]
[357549261,1744135891308,-202.0,0.0005566,30]
[357549262,1744135891318,-3620.08,0.000557,60]
[357549263,1744135891328,-150.47,0.00055833,120]
[357549264,1744135891338,-241.73,0.00055833,120]
[357549265,1744135891351,-265.17158938,0.00055845,120]
[357549266,1744135891363,-689.11914121,0.00055845,120]
[357549267,1744135891373,-1663.12858184,0.00055845,120]
[357549268,1744135891383,-900.0,0.00056,57]
[357549269,1744135891393,-5222.51,0.00056,60]
[357549270,1744135891403,-500.0,0.00056,120]
[357549271,1744135891413,-823.089422,0.00056064,15]
[357549272,1744135891423,-150.0,0.00056076,120]
[357549273,1744135891433,-11590.3204984,0.00056126,2]
[357549274,1744135891443,-150.0,0.00056163,120]
[357549275,1744135891453,-580.15,0.00056163,120]
[357549276,1744135891463,-500.0,0.00056163,120]
[357549277,1744135891473,-932.66,0.00056163,120]
[357549278,1744135891483,-613.35,0.00056163,120]
[357549279,1744135891493,-500.0,0.00056163,120]
[357549280,1744135891504,-581.16,0.00056163,120]
[357549281,1744135891514,-1603.99,0.00056163,120]
[357549282,1744135891524,-72207.66,0.00056163,7]
[357549283,1744135891535,-1365.37,0.00056163,120]
[357549284,1744135891546,-1716.32,0.00056163,120]
[357549285,1744135891556,-2936.12,0.00056163,120]
[357549286,1744135891566,-681.07,0.00056163,120]
[357549287,1744135891576,-500.0,0.00056163,120]
[357549288,1744135891586,-1759.78,0.00056163,120]
[357549289,1744135891596,-1127.76,0.00056163,120]
[357549290,1744135891606,-500.0,0.00056163,120]
[357549291,1744135891617,-500.0,0.00056163,120]
[357549292,1744135891631,-500.0,0.00056163,120]
[357549293,1744135891642,-9035.99,0.00056163,120]
[357549294,1744135891652,-772.33,0.00056163,120]
[357549295,1744135891662,-500.0,0.00056163,120]
[357549296,1744135891674,-500.0,0.00056163,120]
[357549297,1744135891685,-500.0,0.00056163,120]
[357549298,1744135891696,-3050.45,0.00056163,120]
[357549299,1744135891707,-726.43,0.00056163,120]
[357549300,1744135891718,-1239.1,0.00056163,120]
[357549301,1744135891728,-1000.0,0.00056163,120]
[357549302,1744135891739,-516.0,0.00056163,120]
[357549303,1744135891750,-1483.68,0.00056163,120]
[357549304,1744135891760,-500.0,0.00056163,120]
[357549305,1744135891770,-3034.88,0.00056163,120]
[357549306,1744135891779,-573.44,0.00056163,120]
[357549307,1744135891792,-150.0,0.00056163,120]
[357549308,1744135891802,-789.9,0.00056163,120]
[357549309,1744135891813,-500.0,0.00056163,120]
[357549310,1744135891823,-500.0,0.00056163,120]
[357549311,1744135891833,-545.03,0.00056164,120]
[357549312,1744135891842,-500.0,0.00056164,120]
[357549313,1744135891852,-500.0,0.00056164,120]
[357549314,1744135891862,-538.21,0.00056164,120]
[357549315,1744135891872,-500.0,0.00056164,120]
[357549316,1744135891882,-500.0,0.00056164,120]
[357549317,1744135891892,-500.0,0.00056164,120]
[357549318,1744135891902,-500.0,0.00056164,120]
[357549319,1744135891911,-500.0,0.00056164,120]
[357549320,1744135891921,-483.53268245,0.00056164,120]
[357549321,1744135891930,-500.0,0.00056164,120]
[357549322,1744135891940,-500.0,0.00056164,120]
[357549323,1744135891951,-500.0,0.00056164,120]
[357549324,1744135891961,-500.0,0.00056164,120]
[357549325,1744135891971,-686.22,0.00056164,120]
[357549326,1744135891980,-589.26,0.00056164,120]
[357549327,1744135891990,-500.0,0.00056164,120]
[357549328,1744135891999,-500.0,0.00056164,120]
[357549329,1744135892009,-500.0,0.00056164,120]
[357549330,1744135892019,-500.0,0.00056164,120]
[357549331,1744135892028,-500.0,0.00056164,120]
[357549332,1744135892039,-500.0,0.00056164,120]
[357549333,1744135892049,-500.0,0.00056164,120]
[357549334,1744135892059,-531.84,0.00056164,120]
[357549335,1744135892069,-500.0,0.00056164,120]
[357549336,1744135892078,-423.90822916,0.00056164,120]
[357549337,1744135892088,-500.0,0.00056164,120]
[357549338,1744135892098,-500.0,0.00056164,120]
[357549339,1744135892107,-1392.68,0.00056164,120]
[357549340,1744135892117,-1013.5,0.00056164,120]
[357549341,1744135892126,-500.0,0.00056164,120]
[357549342,1744135892136,-500.0,0.00056164,120]
[357549343,1744135892146,-500.0,0.00056164,120]
[357549344,1744135892157,-500.0,0.00056164,120]
[357549345,1744135892167,-500.0,0.00056164,120]
[357549346,1744135892176,-502.78,0.00056164,120]
[357549347,1744135892186,-500.0,0.00056164,120]
[357549348,1744135892196,-500.0,0.00056164,120]
[357549349,1744135892206,-500.0,0.00056164,120]
[357549350,1744135892216,-500.0,0.00056164,120]
[357549351,1744135892225,-500.0,0.00056164,120]
[357549352,1744135892235,-500.0,0.00056164,120]
[357549353,1744135892245,-466.51683983,0.00056164,120]
[357549354,1744135892255,-230.43954102,0.00056164,120]
[357549355,1744135892265,-1285.07,0.00056164,10]
[357549356,1744135892276,-500.0,0.00056164,120]
[357549357,1744135892286,-500.0,0.00056164,120]
[357549358,1744135892296,-729.33,0.00056164,30]
[357549359,1744135892306,-583.31,0.00056164,120]
[357549360,1744135892316,-167.8037095,0.00056164,120]
[357549361,1744135892326,-1155.37,0.00056164,120]
[357549362,1744135892336,-500.0,0.00056164,120]
[357549363,1744135892346,-651.5,0.00056164,120]
[357549364,1744135892356,-500.0,0.00056164,120]
[357549365,1744135892366,-500.0,0.00056164,120]
[357549366,1744135892376,-500.0,0.00056164,120]
[357549367,1744135892387,-500.0,0.00056164,120]
[357549368,1744135892397,-520.00818371,0.00056164,120]
[357549369,1744135892407,-500.0,0.00056164,120]
[357549370,1744135892417,-986.5,0.00056164,120]
[357549371,1744135892429,-829.06,0.00056164,120]
[357549372,1744135892638,-500.0,0.00056164,120]
[357549373,1744135892656,-500.0,0.00056164,120]
[357549374,1744135892665,-500.0,0.00056164,120]
[357549375,1744135892675,-500.0,0.00056164,120]
[357549376,1744135892684,-500.0,0.00056164,120]
[357549377,1744135892694,-500.0,0.00056164,120]
[357549378,1744135892704,-853.97,0.00056164,120]
[357549379,1744135892713,-445.12082611,0.00056164,120]
[357549380,1744135892723,-2000.0,0.00056164,2]
[357549381,1744135892732,-839.17,0.00056164,120]
[357549382,1744135892742,-500.0,0.00056164,120]
[357549383,1744135892751,-500.0,0.00056164,120]
[357549384,1744135892761,-500.0,0.00056164,120]
[357549385,1744135892770,-702.55,0.00056164,120]
[357549386,1744135892779,-500.0,0.00056164,120]
[357549387,1744135892791,-500.0,0.00056164,120]
[357549388,1744135892800,-500.0,0.00056164,2]
[357549389,1744135892810,-677.2,0.00056164,120]
[357549390,1744135892820,-790.51,0.00056164,120]
[357549391,1744135892830,-500.0,0.00056164,120]
[357549392,1744135892840,-500.0,0.00056164,120]
[357549393,1744135892850,-500.0,0.00056164,120]
[357549394,1744135892860,-717.93,0.00056164,120]
[357549395,1744135892869,-500.0,0.00056164,120]
[357549396,1744135892879,-500.0,0.00056164,2]
[357549397,1744135892889,-1019.54,0.00056164,120]
[357549398,1744135892898,-500.0,0.00056164,120]
[357549399,1744135892908,-571.65,0.00056164,120]
[357549400,1744135892918,-500.0,0.00056164,120]
[357549401,1744135892927,-500.0,0.00056164,120]
[357549402,1744135892937,-500.0,0.00056164,120]
[357549403,1744135892946,-567.81,0.00056164,120]
[357549404,1744135892956,-500.0,0.00056164,120]
[357549405,1744135892965,-954.85,0.00056164,120]
[357549406,1744135892975,-500.0,0.00056164,120]
[357549407,1744135892985,-1425.74,0.00056164,30]
[357549408,1744135892994,-1998.88,0.00056164,120]
[357549409,1744135893003,-500.0,0.00056164,120]
[357549410,1744135893013,-1354.7,0.00056164,120]
[357549411,1744135893023,-500.0,0.00056164,120]
[357549412,1744135893034,-500.0,0.00056164,120]
[357549413,1744135893044,-1000.0,0.00056164,35]
[357549414,1744135893055,-500.0,0.00056164,120]
[357549415,1744135893066,-500.0,0.00056164,120]
[357549416,1744135893076,-1046.86,0.00056164,120]
[357549417,1744135893085,-500.0,0.00056164,120]
[357549418,1744135893095,-537.7,0.00056164,120]
[357549419,1744135893104,-524.83,0.00056164,120]
[357549420,1744135893114,-500.0,0.00056164,120]
[357549421,1744135893124,-500.0,0.00056164,120]
[357549422,1744135893133,-812.56,0.00056164,120]
[357549423,1744135893143,-1644.68,0.00056164,120]
[357549424,1744135893153,-884.4,0.00056164,120]
[357549425,1744135893164,-500.0,0.00056164,120]
[357549426,1744135893174,-727.96,0.00056164,120]
[357549427,1744135893184,-500.0,0.00056164,120]
[357549428,1744135893195,-1273.1,0.00056164,120]
[357549429,1744135893206,-500.0,0.00056164,120]
[357549430,1744135893218,-500.0,0.00056164,120]
[357549431,1744135893228,-1048.09,0.00056164,120]
[357549432,1744135893238,-500.0,0.00056164,120]
[357549433,1744135893249,-965.74,0.00056164,120]
[357549434,1744135893260,-500.0,0.00056164,120]
[357549435,1744135893271,-500.0,0.00056164,120]
[357549436,1744135893282,-554.97,0.00056164,120]
[357549437,1744135893298,-500.0,0.00056164,120]
[357549438,1744135893308,-500.0,0.00056164,120]
[357549439,1744135893318,-794.37,0.00056164,120]
[357549440,1744135893328,-500.0,0.00056164,120]
[357549441,1744135893339,-500.0,0.00056164,120]
[357549442,1744135893349,-500.0,0.00056164,120]
[357549443,1744135893360,-635.52,0.00056164,120]
[357549444,1744135893370,-530.29,0.00056164,120]
[357549445,1744135893381,-500.0,0.00056164,120]
[357549446,1744135893391,-500.0,0.00056164,120]
[357549447,1744135893400,-1026.05,0.00056164,120]
[357549448,1744135893410,-500.0,0.00056164,120]
[357549449,1744135893419,-500.0,0.00056164,120]
[357549450,1744135893430,-500.0,0.00056164,120]
[357549451,1744135893439,-541.89,0.00056164,120]
[357549452,1744135893450,-500.0,0.00056164,120]
[357549453,1744135893460,-500.0,0.00056164,120]
[357549454,1744135893471,-500.0,0.00056164,120]
[357549455,1744135893482,-913.6,0.00056164,120]
[357549456,1744135893492,-500.0,0.00056164,120]
[357549457,1744135893502,-581.87,0.00056164,120]
[357549458,1744135893511,-500.0,0.00056164,120]
[357549459,1744135893522,-500.0,0.00056164,120]
[357549460,1744135893536,-500.0,0.00056164,120]
[357549461,1744135893546,-640.64,0.00056164,30]
[357549462,1744135893557,-500.0,0.00056164,120]
[357549463,1744135893567,-541.35,0.00056164,120]
[357549464,1744135893577,-500.0,0.00056164,120]
[357549465,1744135893588,-171.00103254,0.00056164,120]
[357549466,1744135893598,-500.0,0.00056164,120]
[357549467,1744135893609,-500.0,0.00056164,120]
[357549468,1744135893620,-500.0,0.00056164,120]
[357549469,1744135893632,-985.93,0.00056164,120]
[357549470,1744135893642,-531.64,0.00056164,120]
[357549471,1744135893652,-500.0,0.00056164,120]
[357549472,1744135893662,-500.0,0.00056164,120]
[357549473,1744135893672,-500.0,0.00056164,120]
[357549474,1744135893682,-500.0,0.00056164,120]